Cogmind - Beta 13 @@@ ROGUE MODE // 2024.06.05 @ 18:44:04 Player: Selene Result: Destroyed by P-80 Master with Gamma Rifle Performance ------------- Evolutions (8) 4000 Regions Visited (17) 3400 Robots Destroyed (145) 725 Value Destroyed (3891) 3891 Prototype IDs (45) 900 Alien Tech Used (3) 600 Bonus (4313) 4313 TOTAL SCORE: 17829 Bonus ------- Triggered Max Security 2000 High Alert Combat Kills 313 Entered Garrisons 200 Used RIF Installer 500 Entered DSFs 500 Aligned with FarCom 300 Scanned by Researcher 500 Cogmind --------- Core Integrity 0/1450 Matter 57/300 Energy 94/100 System Corruption 4% Temperature Cool (0) Movement Flying (40) Location -2/Section 7 Parts ------- > --- POWER (4) -------- (None) > --- PROPULSION (7) --- Improved Flight Unit > --- UTILITY (12) ----- Machine Analyzer Enhanced Optical Array Experimental Core Analyzer Graphene Brace Hacking Suite Hacking Suite Improved Hacking Suite Advanced System Shield Improved Recalibrator > --- WEAPON (2) ------- Longsword +1 > --- INVENTORY (5) ---- Advanced Power Amplifier Advanced Signal Interpreter Peak State ------------ > --- POWER ------------ Fission Core Micro Antimatter Reactor > --- PROPULSION ------- Xenon Bombardment Thruster Nuclear Pulse Thruster Nuclear Pulse Thruster Nuclear Pulse Thruster Nuclear Pulse Thruster Field Propulsion Drive Cooled Nuclear Pulse Thruster > --- UTILITY ---------- Advanced Cryofiber Web Structural Scanner Machine Analyzer Enhanced Optical Array Experimental Core Analyzer Advanced Transmission Jammer Advanced ECM Suite Improved Propulsion Shielding Layered Light Armor Plating Hacking Suite Hacking Suite Advanced System Shield > --- WEAPON ----------- Mini Grenade Launcher Longsword +1 > --- INVENTORY -------- Improved Flight Unit Advanced Power Amplifier Graphene Brace Improved Hacking Suite Improved Recalibrator [Rating: 118] Favorites ----------- Power Cooled Ion Engine Engine Cooled Ion Engine Power Core Light Nuclear Core Reactor Micro Antimatter Reactor Propulsion Light Treads Treads Light Treads Leg Aluminum Leg Flight Unit Nuclear Pulse Thruster Utility Hacking Suite Device Structural Scanner Storage High-capacity Storage Unit Processor Machine Analyzer Hackware Hacking Suite Protection Improved Light Armor Plating Artifact Microwarp Drive Weapon Longsword +1 Energy Gun Improved Medium Laser Energy Cannon Heavy Particle Cannon Ballistic Gun Heavy Assault Rifle Launcher Mini Grenade Launcher Slashing Weapon Longsword +1 Special Melee Weapon Improved Datajack Build | -11 -10 -10 -9 -9 -9 -8 -8 -7 -6 -5 -4 -3 -3 -3 -2 -2 -2 ------- Run | Yrd Mat Min Mat Min Exi Min Mat Fac Fac Fac Fac Res DSF Gar Res Tes Sec Slots Evolved 16 | . . . 2 . . . 2 2 2 2 2 2 . . 2 . . Power 1 | . . . . . . . . . . 1 . . . . . . . Propulsion 5 | . . . 1 . . . 1 . 1 1 . 1 . . . . . Utility 10 | . . . 1 . . . 1 2 1 . 2 1 . . 2 . . Weapon . | . . . . . . . . . . . . . . . . . . Parts Attached 185 | 7 16 1 35 3 1 2 41 29 12 4 6 4 2 2 7 4 9 Power 21 | 1 1 . 2 . . . 6 3 2 2 . . 1 . 1 . 2 Engine 9 | 1 1 . 2 . . . 3 1 1 . . . . . . . . Core 8 | . . . . . . . 3 2 1 2 . . . . . . . Reactor 4 | . . . . . . . . . . . . . 1 . 1 . 2 Propulsion 48 | 2 2 1 13 . . . 13 6 4 1 . 2 . . 1 1 2 Treads 27 | . 2 1 12 . . . 12 . . . . . . . . . . Leg 4 | 2 . . 1 . . . . . . . . . . . . . 1 Wheel . | . . . . . . . . . . . . . . . . . . Hover . | . . . . . . . . . . . . . . . . . . Flight 17 | . . . . . . . 1 6 4 1 . 2 . . 1 1 1 Utility 74 | 2 7 . 8 1 1 . 6 19 6 1 6 1 1 2 5 3 5 Device 41 | 1 3 . 4 1 . . 1 12 5 1 3 1 . 2 3 1 3 Storage 6 | 1 3 . 1 . 1 . . . . . . . . . . . . Processor 3 | . . . . . . . . 1 . . 1 . . . . 1 . Hackware 6 | . . . . . . . 1 2 . . 1 . . . 1 . 1 Protection 17 | . 1 . 3 . . . 4 4 1 . 1 . 1 . 1 1 . Artifact 1 | . . . . . . . . . . . . . . . . . 1 Weapon 42 | 2 6 . 12 2 . 2 16 1 . . . 1 . . . . . Energy Gun 10 | . 3 . 6 . . . 1 . . . . . . . . . . Energy Cannon 3 | . . . 3 . . . . . . . . . . . . . . Ballistic Gun 17 | 2 3 . . 2 . 1 9 . . . . . . . . . . Ballistic Cannon . | . . . . . . . . . . . . . . . . . . Launcher 8 | . . . 3 . . 1 2 1 . . . 1 . . . . . Special Weapon . | . . . . . . . . . . . . . . . . . . Impact Weapon . | . . . . . . . . . . . . . . . . . . Slashing Weapon 3 | . . . . . . . 3 . . . . . . . . . . Piercing Weapon . | . . . . . . . . . . . . . . . . . . Special Melee Weapon 1 | . . . . . . . 1 . . . . . . . . . . Unidentified Prototypes 10 | . 1 . 1 . . . 4 . . . . . . . . 1 3 Parts Lost 26 | . 1 . 4 . . . 1 . . . . . . 2 . 1 17 Power 5 | . . . 1 . . . 1 . . . . . . . . 1 2 Propulsion 8 | . . . 1 . . . . . . . . . . . . . 7 Utility 11 | . . . 2 . . . . . . . . . . 2 . . 7 Weapon 2 | . 1 . . . . . . . . . . . . . . . 1 Highest Loss Streak 10 | . 1 . 2 . . . 1 . . . . . . 2 . 1 10 To Critical Strikes . | . . . . . . . . . . . . . . . . . . Average Slot Usage (%) 98 | . 99 100 99 100 100 100 99 99 100 100 99 99 98 92 93 96 64 Engine 6 | . 14 14 10 11 11 11 4 6 4 . . . . . . . . Core 2 | . . . . . . . 4 . 1 11 10 9 7 4 4 3 . Treads 21 | . 24 28 32 33 33 33 36 1 . . . . . . . . . Flight 10 | . . . . . . . . 27 33 35 31 33 33 30 30 30 13 Device 9 | . 12 . 10 11 11 11 9 7 6 5 8 14 14 14 17 19 7 Storage 7 | . 14 14 11 11 11 11 9 . . . . . . . . . . Processor 2 | . . . . . . . . 6 6 5 10 9 9 9 8 10 12 Hackware 9 | . . . . . . . 8 22 20 17 16 14 14 14 16 13 15 Protection 8 | . 1 14 10 11 11 11 9 7 13 11 10 9 9 9 2 5 1 Energy Gun 2 | . 2 . 13 . . . 3 . . . . . . . . . . Ballistic Gun 7 | . 25 28 2 17 22 21 5 1 . . . . . . . . . Launcher 1 | . . . . . . . . 5 6 5 5 3 4 4 4 4 1 Slashing Weapon 4 | . . . . . . . 8 7 6 5 5 4 4 4 4 4 4 Naked Turns . | . . . . . . . . . . . . . . . . . . Heaviest Build 64 | 15 37 37 45 45 58 59 64 15 22 27 31 32 32 27 33 34 34 Greatest Support 112 | 20 40 40 60 60 60 60 112 20 28 34 34 41 41 41 42 46 42 Greatest Overweight (x) 2 | . . . . . . . . . . . 1 . . . . . 2 Average Overweight (x) . | . . . . . . . . . . . . . . . . . . Largest Inventory Capacity 20 | 8 15 15 15 15 20 20 20 20 5 5 5 5 5 5 5 5 5 Average Capacity 13 | 7 13 15 15 15 16 20 20 5 5 5 5 5 5 5 5 5 5 Most Carried 20 | 8 15 15 15 15 15 15 20 19 5 5 5 5 5 5 5 5 5 Average Carried 12 | 4 13 14 14 15 14 15 19 5 4 4 4 4 4 5 4 4 3 Final Capacity 20 | 8 15 15 15 15 20 20 20 5 5 5 5 5 5 5 5 5 5 Final Carried 20 | 8 15 15 15 15 15 15 20 5 5 5 5 5 5 5 5 5 2 Class Distribution -------------------- 41% | Mutant 24% | Scavenger-Mutant 23% | Hacker-Scout 9% | Hacker-Ninja Dominant Class ---------------- Mutant | -10/Materials Mutant | -10/Mines Mutant | -9/Materials Scavenger-Mutant | -9/Mines Scavenger-Mutant | -9/Exiles Scavenger-Mutant | -8/Mines Mutant | -8/Materials Hacker-Scout | -7/Factory Hacker-Scout | -6/Factory Hacker-Scout | -5/Factory Hacker-Ninja | -4/Factory Hacker-Ninja | -3/Research Hacker-Ninja | -3/DSF Hacker-Scout | -3/Garrison Hacker-Ninja | -2/Research Hacker-Ninja | -2/Testing Hacker-Assassin | -2/Section 7 Resources | -11 -10 -10 -9 -9 -9 -8 -8 -7 -6 -5 -4 -3 -3 -3 -2 -2 -2 ----------- Run | Yrd Mat Min Mat Min Exi Min Mat Fac Fac Fac Fac Res DSF Gar Res Tes Sec Matter Collected 2922 | 319 493 140 482 42 . 45 706 211 54 . 94 47 2 1 59 118 109 Remotely . | . . . . . . . . . . . . . . . . . . Salvage Created 4815 | 97 713 265 1176 50 . 136 1636 108 75 . 26 47 . 150 59 45 232 Parts 325 | 17 48 10 86 3 . 4 105 7 10 . 5 3 . 9 9 3 6 Haulers Intercepted 13 | . 2 . 3 . . . 6 1 . . . . . . . . 1 Recyclers Shooed 6 | 1 3 . 1 . . . . . . . . . . . 1 . . Parts Field Recycled . | . . . . . . . . . . . . . . . . . . Retrieved Matter . | . . . . . . . . . . . . . . . . . . Parts Self-Destructed . | . . . . . . . . . . . . . . . . . . Prevented . | . . . . . . . . . . . . . . . . . . Kills | -11 -10 -10 -9 -9 -9 -8 -8 -7 -6 -5 -4 -3 -3 -3 -2 -2 -2 ------- Run | Yrd Mat Min Mat Min Exi Min Mat Fac Fac Fac Fac Res DSF Gar Res Tes Sec Combat Hostiles Destroyed 83 | . 12 6 29 . . 3 20 1 . . . . . 8 . 4 . Melee 13 | . . . . . . . 13 . . . . . . . . . . Guns 31 | . 12 6 10 . . . 3 . . . . . . . . . . Cannons 6 | . . . 6 . . . . . . . . . . . . . . AOE 32 | . . . 12 . . 3 4 1 . . . . . 8 . 4 . Classes Destroyed 14 | 2 7 . 3 . . . 1 . . . . . . . . . 1 Worker 8 | 2 1 . 1 1 . . 1 . . . . . . . 1 . 1 Builder 3 | . . . 1 . . . 1 . . . . . . . 1 . . Tunneler 4 | 3 . . . 1 . . . . . . . . . . . . . Hauler 13 | . 2 . 3 . . . 6 1 . . . . . . . . 1 Recycler 7 | . 2 . 1 . . . 3 . . . . . . . . . 1 Mechanic 4 | . 1 . 1 . . . 2 . . . . . . . . . . Operator 9 | . 1 . 1 . . . 1 2 2 . 1 . . . 1 . . Watcher 13 | . 2 . 3 . . . 5 . 1 . . 1 . . . . 1 Swarmer 33 | . 6 . 10 . . . 4 1 . . . . . 8 . 4 . Grunt 32 | . 6 6 11 . . 3 6 . . . . . . . . . . Duelist 3 | . . . 2 . . . 1 . . . . . . . . . . Researcher 1 | . . . . . . . . . . . . . . . . . 1 Sentry 13 | . . . 6 . . . 7 . . . . . . . . . . Hunter 2 | . . . . . . . 2 . . . . . . . . . . Best Kill Streak 9 | 3 4 2 9 1 . 3 5 1 1 . 1 1 . 8 1 4 4 Combat Bots Only 8 | . 3 2 6 . . 3 4 1 . . . . . 8 . 4 . Max Kills in Single Turn 3 | 1 2 1 3 1 . 2 2 1 1 . 1 1 . 2 1 2 3 Gunslinging . | . . . . . . . . . . . . . . . . . . Exploded 3 | . . . 3 . . 2 2 1 . . . . . 2 . 2 . Melee 1 | . . . . . . . 1 . . . . . . . . . . Uniques/NPCs Destroyed . | . . . . . . . . . . . . . . . . . . Combat | -11 -10 -10 -9 -9 -9 -8 -8 -7 -6 -5 -4 -3 -3 -3 -2 -2 -2 -------- Run | Yrd Mat Min Mat Min Exi Min Mat Fac Fac Fac Fac Res DSF Gar Res Tes Sec Hostile Shots Fired 550 | . 71 27 141 . . 5 99 38 6 . 2 . 10 22 2 25 102 Missed 167 | . 19 4 42 . . 1 20 19 3 . 1 . 3 10 2 10 33 Damage Taken 7446 | . 539 324 1328 . . 122 1197 248 52 . 23 . 252 316 . 406 2639 Core 2114 | . 152 43 155 . . 43 63 50 . . . . . 69 . 48 1491 Absorbed by Shields . | . . . . . . . . . . . . . . . . . . Redirected to Shielding 215 | . . . . . . . . . . . 15 . 55 38 . 46 61 Regen/Repaired (Parts) 165 | . 18 . 80 . . . 21 46 . . . . . . . . . Core Remaining (%) 82 | 100 . 22 . . . 50 88 92 100 100 100 . . 94 . . . Volleys Fired 228 | 7 69 19 66 3 . 2 41 5 . . . . . 6 . 4 6 Largest 2 | 2 2 2 2 2 . 2 2 1 . . . . . 1 . 1 1 Hottest 150 | 40 90 46 150 46 . 56 61 30 . . . . . 30 . 30 30 Shots Fired 391 | 14 129 38 123 6 . 4 56 5 . . . . . 6 . 4 6 Gun 321 | 14 129 38 79 6 . 2 53 . . . . . . . . . . Cannon 33 | . . . 33 . . . . . . . . . . . . . . Launcher 37 | . . . 11 . . 2 3 5 . . . . . 6 . 4 6 Special . | . . . . . . . . . . . . . . . . . . Kinetic 236 | 14 118 38 12 6 . 2 46 . . . . . . . . . . Thermal 107 | . . . 100 . . . 7 . . . . . . . . . . Explosive 37 | . . . 11 . . 2 3 5 . . . . . 6 . 4 6 Electromagnetic 11 | . 11 . . . . . . . . . . . . . . . . Robot Hit Streak 15 | 5 14 7 15 10 . 2 12 . . . . . . 6 . . 3 Robot Miss Streak 6 | 2 6 3 3 1 . 1 4 . . . . . . 2 . 4 5 Penetration Max 1 | . . . . . . . 1 . . . . . . . . . . Secondary Targets 4 | . . 2 1 . . . 1 . . . . . . . . . . Max Gunslinging Chain 1 | . . 1 1 . . . 1 . . . . . . . . . . Shots Hit Robots 332 | 8 90 27 82 4 . 3 93 7 3 . 1 1 . 3 4 . 6 Core Hits 196 | 5 31 12 51 2 . 5 41 7 2 . 1 1 . 13 2 8 15 Critical Kills . | . . . . . . . . . . . . . . . . . . Critical Parts Destroyed . | . . . . . . . . . . . . . . . . . . Critical Strikes 12 | . . . 2 . . . 10 . . . . . . . . . . Burn 2 | . . . 2 . . . . . . . . . . . . . . Sever 10 | . . . . . . . 10 . . . . . . . . . . Melee Attacks 316 | . . . . . . . 108 85 31 16 16 6 5 1 19 10 19 Impact . | . . . . . . . . . . . . . . . . . . Slashing 316 | . . . . . . . 108 85 31 16 16 6 5 1 19 10 19 Piercing . | . . . . . . . . . . . . . . . . . . Sneak Attacks 18 | . . . . . . . 13 1 1 . . . . . 3 . . Combat Hostiles . | . . . . . . . . . . . . . . . . . . Follow-up Attacks . | . . . . . . . . . . . . . . . . . . Damage Inflicted 12595 | 112 1307 407 2658 53 . 187 4596 624 235 . 57 57 . 811 301 442 748 Guns 3379 | 112 1276 407 959 53 . 14 558 . . . . . . . . . . Cannons 475 | . . . 475 . . . . . . . . . . . . . . Explosions 3614 | . 31 . 1224 . . 173 222 158 . . . . . 811 . 442 553 Melee 5127 | . . . . . . . 3816 466 235 . 57 57 . . 301 . 195 Ramming . | . . . . . . . . . . . . . . . . . . Kinetic 2361 | 112 1133 407 152 53 . 14 490 . . . . . . . . . . Thermal 1381 | . 31 . 1282 . . . 68 . . . . . . . . . . Explosive 3583 | . . . 1224 . . 173 222 158 . . . . . 811 . 442 553 Electromagnetic 143 | . 143 . . . . . . . . . . . . . . . . Impact . | . . . . . . . . . . . . . . . . . . Slashing 5127 | . . . . . . . 3816 466 235 . 57 57 . . 301 . 195 Piercing . | . . . . . . . . . . . . . . . . . . Highest Corruption 4 | . . . . . . . 4 . . . 2 . . . . . 4 Average Corruption 3 | . . . . . . . 4 . . . 1 . . . . . 2 Corruption Purged 2 | . . . . . . . . . . . 2 . . . . . . Corruption Blocked . | . . . . . . . . . . . . . . . . . . Effects 51 | . . . . . . . 50 . . . . . . . . . 1 Message Errors 13 | . . . . . . . 13 . . . . . . . . . . Matter Fused 10 | . . . . . . . 9 . . . . . . . . . 1 Heat Flow Errors 5 | . . . . . . . 5 . . . . . . . . . . Energy Discharges 9 | . . . . . . . 9 . . . . . . . . . . Parts Fused 1 | . . . . . . . 1 . . . . . . . . . . Data Loss (minor) 4 | . . . . . . . 4 . . . . . . . . . . Data Loss (major) 3 | . . . . . . . 3 . . . . . . . . . . Misfires 5 | . . . . . . . 5 . . . . . . . . . . Alerts 1 | . . . . . . . 1 . . . . . . . . . . Overload Shots . | . . . . . . . . . . . . . . . . . . Overflow Damage 634 | . . . 69 . . . 327 81 42 . . . . 43 32 18 22 Projectiles . | . . . . . . . . . . . . . . . . . . Explosions 148 | . . . 69 . . . 18 . . . . . . 43 . 18 . Melee 486 | . . . . . . . 309 81 42 . . . . . 32 . 22 Knockbacks . | . . . . . . . . . . . . . . . . . . Impact . | . . . . . . . . . . . . . . . . . . Kinetic . | . . . . . . . . . . . . . . . . . . Secondary . | . . . . . . . . . . . . . . . . . . Self-Inflicted Damage 460 | . 37 . 188 . . 53 . 36 . . . . . . . . 146 Shots 14 | . 1 . 5 . . 2 . 1 . . . . . . . . 5 Rammed . | . . . . . . . . . . . . . . . . . . Targets Rammed . | . . . . . . . . . . . . . . . . . . Kicked . | . . . . . . . . . . . . . . . . . . Crushed . | . . . . . . . . . . . . . . . . . . Highest Temperature 333 | . 138 18 183 . . 20 249 2 2 210 132 300 . 245 311 333 46 Average Temperature 69 | . 57 5 38 . . 14 68 2 1 79 21 102 . 79 56 133 21 Received Heat Transfer 1407 | . 159 186 390 . . 54 387 51 . . . . . . . 18 162 Effects 3 | . . . . . . . . . . 1 . . . 2 . . . Energy Bleed 1 | . . . . . . . . . . 1 . . . . . . . Interference 2 | . . . . . . . . . . . . . . 2 . . . Siege Activations . | . . . . . . . . . . . . . . . . . . Robots Corrupted . | . . . . . . . . . . . . . . . . . . Combat Hostiles . | . . . . . . . . . . . . . . . . . . Parts Fried . | . . . . . . . . . . . . . . . . . . Impact Corruptions . | . . . . . . . . . . . . . . . . . . Robots Melted 1 | . . . 1 . . . . . . . . . . . . . . Combat Hostiles 1 | . . . 1 . . . . . . . . . . . . . . Parts Melted 5 | . . . 5 . . . . . . . . . . . . . . Heat Transferred 2825 | . 50 . 2627 . . . 148 . . . . . . . . . . Parts Sabotaged 1 | . . . . . . . . . . . . . . . . . 1 Parts Stolen . | . . . . . . . . . . . . . . . . . . Parts Stripped . | . . . . . . . . . . . . . . . . . . Power Chain Reactions 1 | . 1 . . . . . . . . . . . . . . . . Alert | -11 -10 -10 -9 -9 -9 -8 -8 -7 -6 -5 -4 -3 -3 -3 -2 -2 -2 ------- Run | Yrd Mat Min Mat Min Exi Min Mat Fac Fac Fac Fac Res DSF Gar Res Tes Sec Peak Influence 2133 | 25 205 181 654 228 . 83 338 149 117 93 125 57 52 276 240 1836 2133 Initial 1100 | . 16 16 70 223 . . 31 67 32 1 . 10 42 39 144 40 1100 Average 183 | 6 88 66 387 177 . 81 91 68 48 53 41 19 48 159 184 1684 1770 Maximum Alert Level 5 | . 1 . 2 1 . . 1 . . . . . . 1 1 5 5 Low Security (%) 75 | 100 97 100 19 23 . 100 80 100 100 100 100 100 100 44 52 . . Level 1 14 | . 2 . 15 76 . . 19 . . . . . . 55 47 . . Level 2 6 | . . . 64 . . . . . . . . . . . . . . Level 3 . | . . . . . . . . . . . . . . . . . . Level 4 . | . . . . . . . . . . . . . . . . . . Level 5 . | . . . . . . . . . . . . . . . . . . High Security . | . . . . . . . . . . . . . . . . . . Max Security 3 | . . . . . . . . . . . . . . . . 99 99 Squads Dispatched 38 | . 2 . 2 . . . 1 4 1 . 1 1 1 . . 12 13 Investigation 5 | . 1 . . . . . . 2 1 . 1 . . . . . . Extermination 2 | . . . . . . . . 1 . . . 1 . . . . . Reinforcement 7 | . 1 . 2 . . . 1 1 . . . . 1 . . . 1 Assault 24 | . . . . . . . . . . . . . . . . 12 12 Garrison . | . . . . . . . . . . . . . . . . . . Intercept . | . . . . . . . . . . . . . . . . . . Searches Triggered . | . . . . . . . . . . . . . . . . . . Construction Impeded 1 | . . . 1 . . . . . . . . . . . . . . Haulers Reinforced . | . . . . . . . . . . . . . . . . . . Active Scanning Responses . | . . . . . . . . . . . . . . . . . . Cargo Convoy Interrupts . | . . . . . . . . . . . . . . . . . . Stealth | -11 -10 -10 -9 -9 -9 -8 -8 -7 -6 -5 -4 -3 -3 -3 -2 -2 -2 --------- Run | Yrd Mat Min Mat Min Exi Min Mat Fac Fac Fac Fac Res DSF Gar Res Tes Sec Distress Signals 13 | . 2 . 3 . . . 3 . . . 1 . . . . 2 2 Communications Jammed 3 | . . . . . . . . . . . . . . . . 1 2 Distress Signals 3 | . . . . . . . . . . . . . . . . 1 2 Times Spotted 224 | . 21 6 34 . . 3 41 11 8 . 3 1 5 13 2 23 53 Peak Tracking Total 27 | . 6 2 7 . . 3 4 5 3 . 4 2 5 10 1 14 27 Tactical Retreats 26 | . 1 . 1 . . . 3 5 2 . 3 . . . 1 4 6 Traps | -11 -10 -10 -9 -9 -9 -8 -8 -7 -6 -5 -4 -3 -3 -3 -2 -2 -2 ------- Run | Yrd Mat Min Mat Min Exi Min Mat Fac Fac Fac Fac Res DSF Gar Res Tes Sec Traps Triggered 12 | . 1 . 1 . . . 1 1 2 . 2 1 . 2 . . 1 Indirectly . | . . . . . . . . . . . . . . . . . . Trap Hack Attempts 16 | . . . . . . . 16 . . . . . . . . . . Triggered . | . . . . . . . . . . . . . . . . . . Disarmed 2 | . . . . . . . 2 . . . . . . . . . . Reprogrammed . | . . . . . . . . . . . . . . . . . . Reused . | . . . . . . . . . . . . . . . . . . Traps Extracted . | . . . . . . . . . . . . . . . . . . Installed . | . . . . . . . . . . . . . . . . . . Triggered . | . . . . . . . . . . . . . . . . . . Machines | -11 -10 -10 -9 -9 -9 -8 -8 -7 -6 -5 -4 -3 -3 -3 -2 -2 -2 ---------- Run | Yrd Mat Min Mat Min Exi Min Mat Fac Fac Fac Fac Res DSF Gar Res Tes Sec Machines Disabled 8 | . . . 1 . . . 2 . 1 . . . . 1 . . 3 Max in Single Turn 1 | . . . 1 . . . 1 . 1 . . . . 1 . . 1 Garrison Access 9 | . . . . . . . 1 3 1 1 2 . . . 1 . . Garrison Relay 1 | . . . . . . . . . . . . . . 1 . . . Machines Repaired . | . . . . . . . . . . . . . . . . . . Machines Dismantled . | . . . . . . . . . . . . . . . . . . Machines Sabotaged . | . . . . . . . . . . . . . . . . . . Overloaded Fab Kills . | . . . . . . . . . . . . . . . . . . Hacking | -11 -10 -10 -9 -9 -9 -8 -8 -7 -6 -5 -4 -3 -3 -3 -2 -2 -2 --------- Run | Yrd Mat Min Mat Min Exi Min Mat Fac Fac Fac Fac Res DSF Gar Res Tes Sec Machines Accessed 102 | . 9 . 11 . 5 . 16 23 11 10 8 2 . 1 6 . . Terminals 64 | . 7 . 7 . . . 12 13 8 7 5 2 . 1 2 . . Fabricators 2 | . . . . . . . . 2 . . . . . . . . . Repair Stations 4 | . 1 . 1 . . . 1 1 . . . . . . . . . Recycling Units 9 | . 1 . 1 . . . . 3 1 1 1 . . . 1 . . Scanalyzers 8 | . . . 2 . . . 2 1 . 1 . . . . 2 . . Garrison Access 10 | . . . . . . . 1 3 2 1 2 . . . 1 . . Total Hacks 295 | . 25 . 29 . 50 . 52 52 22 28 18 4 . 1 14 . . Successful 177 | . 18 . 14 . 50 . 31 23 7 15 11 1 . 1 6 . . Failed 118 | . 7 . 15 . . . 21 29 15 13 7 3 . . 8 . . Catastrophic 26 | . 1 . 1 . . . 5 11 2 1 1 1 . . 3 . . Database Lockouts . | . . . . . . . . . . . . . . . . . . Manual 103 | . 10 . 9 . 1 . 25 19 8 15 6 3 . . 7 . . Terminals 176 | . 21 . 17 . . . 38 33 18 23 14 4 . 1 7 . . Fabricators 5 | . . . . . . . . 5 . . . . . . . . . Repair Stations 9 | . 2 . 2 . . . 3 2 . . . . . . . . . Recycling Units 13 | . 2 . 2 . . . . 4 1 1 1 . . . 2 . . Scanalyzers 26 | . . . 8 . . . 9 3 . 2 . . . . 4 . . Garrison Access 16 | . . . . . . . 2 5 3 2 3 . . . 1 . . Terminal Hacks 110 | . 11 . 5 . 50 . 15 9 4 7 7 1 . 1 . . . Record 53 | . . . . . 49 . . . . 1 3 . . . . . . Robot Analysis 5 | . . . 1 . . . 2 . 1 1 . . . . . . . Prototype ID Bank 8 | . 2 . 1 . . . 2 1 . 1 1 . . . . . . Open DSF 4 | . . . . . . . . 1 1 . 1 1 . . . . . Level Access Points 4 | . . . . . . . . 1 1 1 1 . . . . . . Emergency Access Points 2 | . 2 . . . . . . . . . . . . . . . . Terminal Index 1 | . . . . . . . . . 1 . . . . . . . . Alert Level 2 | . 1 . . . . . . . . 1 . . . . . . . Unreport Threat 5 | . . . . . . . 4 1 . . . . . . . . . Locate Traps 11 | . 2 . 1 . . . 2 4 . 2 . . . . . . . Surveillance Status 1 | . . . . . . . 1 . . . . . . . . . . Recall Extermination 1 | . . . . . . . . 1 . . . . . . . . . Recall Reinforcements 1 | . . . . . . . 1 . . . . . . . . . . Hauler Manifests 2 | . . . 1 . . . 1 . . . . . . . . . . Registered Components 2 | . 1 . . . . . 1 . . . . . . . . . . Zone Layout 6 | . 3 . 1 . . . 1 . . . 1 . . . . . . Security Stations 1 | . . . . . . . . . . . . . . 1 . . . Derelict Proto ID Bank 1 | . . . . . 1 . . . . . . . . . . . . Fabricator Hacks 3 | . . . . . . . . 3 . . . . . . . . . Network Status 1 | . . . . . . . . 1 . . . . . . . . . Load Schematic 1 | . . . . . . . . 1 . . . . . . . . . Build 1 | . . . . . . . . 1 . . . . . . . . . Repair Station Hacks 8 | . 2 . 2 . . . 2 2 . . . . . . . . . Scan Component 4 | . 1 . 1 . . . 1 1 . . . . . . . . . Repair 4 | . 1 . 1 . . . 1 1 . . . . . . . . . Recycling Unit Hacks 8 | . 1 . . . . . . 2 1 1 1 . . . 2 . . Report Inventory 7 | . 1 . . . . . . 2 1 1 1 . . . 1 . . Retrieve Matter 1 | . . . . . . . . . . . . . . . 1 . . Scanalyzer 22 | . . . 6 . . . 9 2 . 2 . . . . 3 . . Insert Component 11 | . . . 3 . . . 4 1 . 1 . . . . 2 . . Analyze 11 | . . . 3 . . . 5 1 . 1 . . . . 1 . . Garrison Access Hacks 9 | . . . . . . . 1 3 1 1 2 . . . 1 . . Seal Access 9 | . . . . . . . 1 3 1 1 2 . . . 1 . . Unauthorized Hacks 17 | . 4 . 1 . . . 4 2 1 4 1 . . . . . . Terminals 14 | . 3 . . . . . 4 1 1 4 1 . . . . . . Assimilate 11 | . 1 . . . . . 3 1 1 4 1 . . . . . . Botnet 3 | . 2 . . . . . 1 . . . . . . . . . . Fabricators . | . . . . . . . . . . . . . . . . . . Repair Stations . | . . . . . . . . . . . . . . . . . . Recycling Units 3 | . 1 . 1 . . . . 1 . . . . . . . . . Reject 3 | . 1 . 1 . . . . 1 . . . . . . . . . Scanalyzers . | . . . . . . . . . . . . . . . . . . Garrison Access . | . . . . . . . . . . . . . . . . . . Data Cores Recovered 4 | . . . . . . . . 1 1 . 1 . . . 1 . . Used 1 | . . . . . . . . . . . 1 . . . . . . Hacking Detections 73 | . 7 . 9 . . . 14 17 8 8 5 1 . 1 3 . . Full Trace Events 2 | . . . . . . . . 2 . . . . . . . . . Feedback Events . | . . . . . . . . . . . . . . . . . . Feedback Blocked . | . . . . . . . . . . . . . . . . . . Robot Schematics Acquired . | . . . . . . . . . . . . . . . . . . Robots Built . | . . . . . . . . . . . . . . . . . . Authchips . | . . . . . . . . . . . . . . . . . . Time . | . . . . . . . . . . . . . . . . . . Total Robot Build Rating . | . . . . . . . . . . . . . . . . . . Part Schematics Acquired 10 | . . . 3 . . . 4 1 . 1 . . . . 1 . . Parts Built 1 | . . . . . . . . 1 . . . . . . . . . Authchips . | . . . . . . . . . . . . . . . . . . Time 99 | . . . . . . . . 99 . . . . . . . . . Total Part Build Rating 2 | . . . . . . . . 2 . . . . . . . . . Parts Repaired 4 | . 1 . 1 . . . 1 1 . . . . . . . . . Time 116 | . 26 . 26 . . . 26 38 . . . . . . . . . Parts Recycled . | . . . . . . . . . . . . . . . . . . Recycled Matter . | . . . . . . . . . . . . . . . . . . Retrieved Matter . | . . . . . . . . . . . . . . . . . . Retrieved Components . | . . . . . . . . . . . . . . . . . . Parts Scanalyzed 10 | . . . 3 . . . 4 1 . 1 . . . . 1 . . Part Schematics Acquired 10 | . . . 3 . . . 4 1 . 1 . . . . 1 . . Parts Damaged 1 | . . . . . . . . . . . . . . . 1 . . Bothacking | -11 -10 -10 -9 -9 -9 -8 -8 -7 -6 -5 -4 -3 -3 -3 -2 -2 -2 ------------ Run | Yrd Mat Min Mat Min Exi Min Mat Fac Fac Fac Fac Res DSF Gar Res Tes Sec Used RIF Installer 1 | . . . . . . . . . . . . . . 1 . . . Robots Hacked . | . . . . . . . . . . . . . . . . . . Non-combat . | . . . . . . . . . . . . . . . . . . Combat . | . . . . . . . . . . . . . . . . . . Robot Hacks Applied . | . . . . . . . . . . . . . . . . . . Relay Couplers Released 5 | . . . . . . . . . . . . . . 5 . . . Machine Destruction 5 | . . . . . . . . . . . . . . 5 . . . Fabnet Peak Effective % . | . . . . . . . . . . . . . . . . . . Robots Rewired . | . . . . . . . . . . . . . . . . . . Allies Hacked . | . . . . . . . . . . . . . . . . . . Hacks Repelled . | . . . . . . . . . . . . . . . . . . Allies | -11 -10 -10 -9 -9 -9 -8 -8 -7 -6 -5 -4 -3 -3 -3 -2 -2 -2 -------- Run | Yrd Mat Min Mat Min Exi Min Mat Fac Fac Fac Fac Res DSF Gar Res Tes Sec Total Allies 1 | . . . . . . . 1 . . . . . . . . . . Largest Group 1 | . . . . . . . 1 . . . . . . . . . . Highest-Rated Group 10 | . . . . . . . 10 . . . . . . . . . . Highest-Rated Ally 10 | . . . . . . . 10 . . . . . . . . . . Total Orders . | . . . . . . . . . . . . . . . . . . Ally Attacks . | . . . . . . . . . . . . . . . . . . Total Damage . | . . . . . . . . . . . . . . . . . . Kills . | . . . . . . . . . . . . . . . . . . Allies Corrupted . | . . . . . . . . . . . . . . . . . . Allies Melted . | . . . . . . . . . . . . . . . . . . Intel | -11 -10 -10 -9 -9 -9 -8 -8 -7 -6 -5 -4 -3 -3 -3 -2 -2 -2 ------- Run | Yrd Mat Min Mat Min Exi Min Mat Fac Fac Fac Fac Res DSF Gar Res Tes Sec Robot Analysis Total 5 | . . . 1 . . . 2 . 1 1 . . . . . . . Derelict Logs Recovered 2 | . . . . 2 . . . . . . . . . . . . . Drone Launches . | . . . . . . . . . . . . . . . . . . Drone Recoveries . | . . . . . . . . . . . . . . . . . . Exploration | -11 -10 -10 -9 -9 -9 -8 -8 -7 -6 -5 -4 -3 -3 -3 -2 -2 -2 ------------- Run | Yrd Mat Min Mat Min Exi Min Mat Fac Fac Fac Fac Res DSF Gar Res Tes Sec Turns Passed 13267 | 121 1515 349 1321 526 616 156 4124 1438 824 408 429 266 26 209 438 255 246 Spaces Moved 14290 | 69 762 175 605 317 384 87 2054 2865 1419 1103 1092 385 49 619 776 814 715 Core 8 | 8 . . . . . . . . . . . . . . . . . Treads 4242 | . 620 175 605 317 384 87 2054 . . . . . . . . . . Legs 251 | 61 142 . . . . . . . . . . . . . . . 48 Wheels . | . . . . . . . . . . . . . . . . . . Hover . | . . . . . . . . . . . . . . . . . . Flight 9288 | . . . . . . . . 2865 1419 1103 1092 385 49 619 776 814 166 Fastest Speed 18 | 50 120 160 160 160 160 160 151 29 27 25 25 22 22 22 22 18 22 Average Speed 69 | 111 152 160 160 160 160 160 159 33 27 25 25 22 22 23 22 22 61 Slowest Speed 162 | 120 160 160 160 160 160 160 162 54 28 25 104 22 22 25 22 29 112 Overloaded Moves 12 | . . . . . . . . . . . . . . . . 12 . Propulsion Burnouts . | . . . . . . . . . . . . . . . . . . Robots Hopped 19 | . . . . . . . . 2 2 5 9 1 . . . . . Cave-ins Triggered . | . . . . . . . . . . . . . . . . . . Microwarps 37 | . . . . . . . . . . . . . . . . . 37 Exploration Rate (%) 49 | 4 96 50 51 80 78 19 95 64 33 30 26 4 83 60 15 76 31 Regions Visited 17 Branch Regions 6 Pre-discovered Areas 2 | . . . . 1 1 . . . . . . . . . . . . Known Exits Taken 6 | . . . . . . . 1 1 1 1 1 1 . . . . . Unknown Exits Taken 9 | 1 1 1 1 1 1 1 . . . . . . . . 1 1 . Scrap Searched 4 | . . 1 . 3 . . . . . . . . . . . . . Spaces Dug 219 | . . . . . . . 40 87 26 16 14 5 5 . 13 5 8 Terrain Destroyed 419 | . 6 . 88 . . 22 52 116 26 16 14 5 5 . 13 37 19 Melee 204 | . . . . . . . 40 76 26 16 14 5 5 . 13 5 4 Projectile 15 | . . . 14 . . . 1 . . . . . . . . . . AOE 200 | . 6 . 74 . . 22 11 40 . . . . . . . 32 15 Terrain Rammed . | . . . . . . . . . . . . . . . . . . Walls Destroyed . | . . . . . . . . . . . . . . . . . . Machines Disabled . | . . . . . . . . . . . . . . . . . . Actions | -11 -10 -10 -9 -9 -9 -8 -8 -7 -6 -5 -4 -3 -3 -3 -2 -2 -2 --------- Run | Yrd Mat Min Mat Min Exi Min Mat Fac Fac Fac Fac Res DSF Gar Res Tes Sec Total 16708 | 95 995 207 840 330 387 99 2766 3252 1817 1213 1224 557 59 670 1024 871 302 Wait 1878 | 5 94 10 92 6 . 9 446 250 336 90 102 162 . 30 214 32 . Move 13768 | 68 761 174 604 316 383 86 2053 2860 1415 1092 1073 382 48 614 775 813 251 Hop 18 | . . . . . . . . 2 1 5 9 1 . . . . . Pick Up 115 | 8 29 1 15 1 1 . 24 3 4 4 9 2 1 1 7 4 1 Fast Attach 41 | 7 3 . 9 . . . 9 1 1 . 1 2 1 . 1 . 6 Attach 40 | . 1 . 5 . . . 5 7 2 3 3 2 . . 5 1 6 Detach 11 | . . . . . . . 4 3 . . 1 . . . . 1 2 Swap 107 | . 12 1 21 3 1 2 27 21 9 1 2 . 1 2 1 3 . Drop 134 | . 26 2 28 1 2 . 33 15 7 2 8 . 3 2 2 3 . Fire 228 | 7 69 19 66 3 . 2 41 5 . . . . . 6 . 4 6 Melee 316 | . . . . . . . 108 85 31 16 16 6 5 1 19 10 19 Ram . | . . . . . . . . . . . . . . . . . . Kick . | . . . . . . . . . . . . . . . . . . Crush . | . . . . . . . . . . . . . . . . . . Escape Stasis 36 | . . . . . . . . . 11 . . . . 14 . . 11 Rewire . | . . . . . . . . . . . . . . . . . . Trap 16 | . . . . . . . 16 . . . . . . . . . . Miscellaneous . | . . . . . . . . . . . . . . . . . . Route ------- -11/Scrapyard -10/Materials (discovered 5 exits: *Mat x3 / [*Min] / [*Sub]) -10/Mines (discovered 2 exits: *Mat x2) -9/Materials (discovered 3 exits: *Mat / [*Min] / [*Sto]) -9/Mines (discovered 2 exits: *Mat / *Exi) -9/Exiles -8/Mines -8/Materials (discovered 2 exits: *Fac x2) -7/Factory (discovered 6 exits: *Fac x4 / [*Low x2]) -6/Factory (discovered 5 exits: *Fac x4 / [*Low]) -5/Factory (discovered 4 exits: *Fac x4) -4/Factory (discovered 4 exits: *Res x4) -3/Research -3/DSF -3/Garrison (discovered 3 exits: *Res x3) -2/Research -2/Testing (discovered 2 exits: [*Acc] / [*Sec]) -2/Section 7 History --------- Turn | Location | Event 7 | -11/Scrapyard | Discovered new exit (range 14) 122 | -11/Scrapyard | Entered Materials 313 | -10/Materials | Build established: Mutant 479 | -10/Materials | Discovered new exit (range 15) 840 | -10/Materials | Core integrity fell below 50% 899 | -10/Materials | Discovered new exit (range 15) 1130 | -10/Materials | Discovered new exit (range 8) 1168 | -10/Materials | Repaired Seismic Detector 1328 | -10/Materials | Discovered new exit (range 15) 1599 | -10/Materials | Discovered new exit (range 15) 1637 | -10/Materials | Entered Mines 1764 | -10/Mines | Discovered new exit (range 14) 1953 | -10/Mines | Discovered new exit (range 5) 1986 | -10/Mines | Entered Materials 1986 | -9/Materials | Evolved 2 slots: Propulsion x1, Utility x1 2033 | -9/Materials | Discovered new exit (range 9) 2073 | -9/Materials | Repaired Lgt. Armor Plating 2662 | -9/Materials | Discovered new exit (range 16) 2892 | -9/Materials | Build established: Scavenger-Mutant 2912 | -9/Materials | Discovered new exit (range 13) 3307 | -9/Materials | Entered Mines 3317 | -9/Mines | Deemed a non-threat by the Exiles lab entrance 3348 | -9/Mines | Received a Rocket Launcher from a helpful Derelict 3362 | -9/Mines | Learned location of 1 exit from Materials 3472 | -9/Mines | Discovered new exit (range 13) 3482 | -9/Mines | Learned location of Storage (-9) 3766 | -9/Mines | Learned 2 Materials zone layouts 3827 | -9/Mines | Discovered new exit (range 5) 3833 | -9/Mines | Entered Exiles 3872 | -9/Exiles | Met 8R-AWN 3896 | -9/Exiles | Met EX-HEX 3971 | -9/Exiles | Met EX-BIN 4069 | -9/Exiles | Aligned with FarCom system 4070 | -9/Exiles | Given EX-Vault access code 4107 | -9/Exiles | Opened EX-Vault 4124 | -9/Exiles | Found Longsword +1 4161 | -9/Exiles | Warned to stay clear of 0b10 Research branches 4270 | -9/Exiles | Met EX-DEC 4306 | -9/Exiles | Visited The Gauntlet 4384 | -9/Exiles | Learned location of Zion (-6) 4436 | -9/Exiles | Discovered new exit (range 10) 4449 | -9/Exiles | Left Exiles lab with Longsword +1 4449 | -9/Exiles | Entered Mines 4471 | -8/Mines | Discovered new exit (range 8) 4605 | -8/Mines | Entered Materials 4605 | -8/Materials | Evolved 2 slots: Propulsion x1, Utility x1 4606 | -8/Materials | Identified exit to Factory 5294 | -8/Materials | Build established: Mutant 5523 | -8/Materials | Repaired Lgt. Armor Plating 6113 | -8/Materials | Discovered exit to Factory (range 13) 7800 | -8/Materials | Build established: Scavenger-Mutant 8729 | -8/Materials | Entered Factory 8729 | -7/Factory | Evolved 2 slots: Utility x2 8990 | -7/Factory | Repaired Lgt. Deuterium Engine? 9031 | -7/Factory | Build established: Hacker-Scout 9106 | -7/Factory | Identified exit to DSF 9130 | -7/Factory | Discovered new exit (range 9) 9166 | -7/Factory | Discovered new exit (range 10) 9487 | -7/Factory | Discovered new exit (range 11) 9555 | -7/Factory | Fabricated Imp. Flight Unit? 9641 | -7/Factory | Discovered new exit (range 7) 10036 | -7/Factory | Discovered new exit (range 14) 10043 | -7/Factory | Identified exit to Factory 10167 | -7/Factory | Entered another Factory area 10167 | -6/Factory | Evolved 2 slots: Propulsion x1, Utility x1 10198 | -6/Factory | Identified exit to DSF 10293 | -6/Factory | Discovered new exit (range 8) 10418 | -6/Factory | Identified exit to Factory 10418 | -6/Factory | Spotted B-75 Beast 10991 | -6/Factory | Entered another Factory area 10991 | -5/Factory | Evolved 2 slots: Power x1, Propulsion x1 11103 | -5/Factory | Identified exit to Factory 11399 | -5/Factory | Entered another Factory area 11399 | -4/Factory | Evolved 2 slots: Utility x2 11482 | -4/Factory | Identified exit to DSF 11671 | -4/Factory | Identified exit to Research 11826 | -4/Factory | Build established: Hacker-Ninja 11828 | -4/Factory | Entered Research 11828 | -3/Research | Evolved 2 slots: Propulsion x1, Utility x1 12094 | -3/Research | Identified exit to DSF 12094 | -3/Research | Entered DSF 12112 | -3/DSF | Additional patrols routed to DSF 12116 | -3/DSF | Discovered new exit (range 11) 12120 | -3/DSF | Entered Garrison 12135 | -3/Garrison | Learned Research security intel 12176 | -3/Garrison | Discovered new exit (range 11) 12178 | -3/Garrison | Attempted to access garrison exit controls, blocked by remote lockdown 12202 | -3/Garrison | Triggered checkpoint 12210 | -3/Garrison | Triggered checkpoint 12228 | -3/Garrison | Discovered new exit (range 13) 12231 | -3/Garrison | Attempted to access garrison exit controls, blocked by remote lockdown 12235 | -3/Garrison | Destroyed 8 combat bots 12277 | -3/Garrison | Garrison Relay disabled 12303 | -3/Garrison | Installed Relay Interface Framework 12327 | -3/Garrison | Discovered new exit (range 12) 12329 | -3/Garrison | Entered Research 12329 | -2/Research | Evolved 2 slots: Utility x2 12508 | -2/Research | Discovered new exit (range 17) 12511 | -2/Research | Build established: Hacker-Scout 12767 | -2/Research | Entered Testing 12768 | -2/Testing | Maximum security lockdown engaged 12775 | -2/Testing | Found Prototype Processor 12820 | -2/Testing | Build established: Hacker-Ninja 12909 | -2/Testing | Spotted Striker 12909 | -2/Testing | Spotted Striker 12917 | -2/Testing | Identified Exp. Core Analyzer 12971 | -2/Testing | Discovered new exit (range 18) 12978 | -2/Testing | Spotted Fortress 13020 | -2/Testing | Discovered new exit (range 6) 13022 | -2/Testing | Entered Section 7 13023 | -2/Section 7 | Maximum security lockdown engaged 13059 | -2/Section 7 | Scanned by Researcher 13101 | -2/Section 7 | Found Alien Artifact 13101 | -2/Section 7 | Identified Microwarp Drive 13136 | -2/Section 7 | Lost 10 parts (1p4n4u1w) 13173 | -2/Section 7 | Spotted Executioner 13187 | -2/Section 7 | Core integrity fell below 50% 13197 | -2/Section 7 | Spotted Alpha 7 13199 | -2/Section 7 | Spotted Alpha 7 13201 | -2/Section 7 | Spotted B-99 Colossus 13206 | -2/Section 7 | Core integrity fell below 20% 13210 | -2/Section 7 | Lost 3 parts (1p1n1u) 13214 | -2/Section 7 | Found Alien Artifact 13214 | -2/Section 7 | Identified Integrity Redistributor 13214 | -2/Section 7 | Used Integrity Redistributor, redistributed integrity to core (+80) 13244 | -2/Section 7 | Found Alien Artifact 13244 | -2/Section 7 | Identified Core Expander 13244 | -2/Section 7 | Installed Core Expander, added new Power slot 13247 | -2/Section 7 | Found Core Expander 13247 | -2/Section 7 | Installed Core Expander, added new Power slot 13268 | -2/Section 7 | Destroyed by P-80 Master with Gamma Rifle Last Messages --------------- with Power slot. 13247_ Acquired Core Expander. 13247_ Core Expander installed, core expanded with Power slot. 13253_ Microwarped (distance 15). 13254_ Microwarped (distance 14). 13255_ Microwarped (distance 4). 13256_ Microwarped (distance 12). 13257_ Microwarped (distance 21). 13263_ Slug penetrates Reinforced Barrier. 13263_ Biometal Leg destroyed. 13263_ Microwarped (distance 13). 13264_ Microwarp Drive destroyed. 13266_ C-30 ARC bursts open, deploying its payload. 13266_ G-73 Enforcer unfolds itself. 13266_ B-74 Champion unfolds itself. 13266_ G-73 Enforcer unfolds itself. 13266_ E-15 Imp unfolds itself. 13266_ Destroyed Adv. Heat Sink. Map ----- +----------------------------------------------------+ | ??????????????? ? ?? ??????????????????????? | | ??????????" ??" ? ???????????????????????? | | ????? ???? "" "?" ""???????????????????????? | | ??????? ??? """ "?????????? ??????????? | | "???????? " " "" "????????? ?????????? | | "" ????????? " "????????? ????????? | | "" ???????""" "" "???"""""" ????????? | | """""" "??? ????????? | | ""?"" ????????? | | "" ?????????? | | """"" " ??????????? | | "???" ?????????? | | ??" ???????????? | | "" """"" ?????????????? | | "" ???????????????? | | "" ?????????????????? | | " E ???????????????????? | | g "?????????????????????? | | """""""""""" ##?????????????????????? | | """""""""""" BB g #??????????????????????? | | ###################BB###//#??????????????????????? | | ??????????????????# ??# g#??????????????????????? | | ??????????????????###??# g#??????????????????????? | | ???????????????????????# b#??????????????????????? | | ???????????????????????#ge#??#################???? | | ???????????????????????# @#??#"""""" """""#???? | | ???????????????????????# #??#"""""" """""#???? | | ???????????????????????# #??#"""""" "#???? | | ????????????############p #### " """""#???? | | ????????????# p """""#???? | | ????????????# 7 7p """""#???? | | ????????????# ###############" """""#???? | | ????????##### #?????????????#"" "#???? | | ?????#### # #####?????????#" " "#???? | | ?????#" """" """"#?????????#"""""""" "" "#???? | | ?????#" """#?????????######### # ####???? | | ?????#" """#?????????????????# ###??????? | | ?????#""""" """#?????????????????# #????????? | | ?????#""""" """#?????????????????# #????????? | | ?????#""""" """#?????????????????# #????????? | | ?????#""""" """#?###############?# #????????? | | ?????#" """"#?#"""""""""""""#?# #????????? | | ?????#""""" """#?#"" """" #?# #????????? | | ?????#""""" """"#?#"" """" #?# #????????? | | ??????####### #####?#"" """" ### #????????? | | ????????????# #?????#"" """" #????????? | | ????????????# #?????# #????????? | | ????????????# #?????# ######????????? | | ????????????# ####### """" ""#?????????????? | | ????????????# """" ""#?????????????? | +----------------------------------------------------+ Best States ------------- Heat Dissipation 50 Energy Generation 40 Energy Capacity 480 Matter Stores 300 Matter Capacity 300 Sight Range 22 Terrain Scan Range 16 Terrain Scan Density 10 ECM Strength 2 Jamming Range 16 Power Amplification 30 Base Temperature (-) 200 Armor Coverage 300 Propulsion Shielding 66 Evasion (%) 65 Core Analysis 8 Recoil Reduction 4 Offensive Hacking 32 Defensive Hacking 24 Authchip Count 2 Item Schematics ----------------- Hacking Suite | -9/Materials | Scanalyzed Imp. Flight Unit | -9/Materials | Scanalyzed System Shield | -9/Materials | Scanalyzed Lgt. Nuclear Core | -8/Materials | Scanalyzed Cooling System | -8/Materials | Scanalyzed Imp. Light Armor Plating | -8/Materials | Scanalyzed Imp. Propulsion Shielding | -8/Materials | Scanalyzed Adv. ECM Suite | -7/Factory | Scanalyzed Lgt. Fission Core | -5/Factory | Scanalyzed Adv. Transmission Jammer | -2/Research | Scanalyzed Robot Schematics ------------------ None Fabricated ------------ Imp. Flight Unit | x1 | -7/Factory Alien Tech Used ----------------- Microwarp Drive Integrity Redistributor Core Expander Achievements -------------- Hunted Nope Signature Confirmed Challenges ------------ None Game ------ Seed HardlightGodWheel Manual? 0 Play Time 03:44:33 Cumulative 60.1 hours Start 2024.06.05 @ 14:43:25 End 2024.06.05 @ 18:44:04 Sessions 1 Manual Loads 0 Difficulty Rogue Special Mode None Game No. 38 Rogue 35 Adventurer 3 Explorer 0 Win Type - Total 1 Types 1/0/0/0/0/0/0/0/0 Lore% 30 Gallery% 41 Achievement% 33 Wizard Run 0 Options --------- Layout 2 ASCII 0 Keyboard 1 Movement Vi Keybinds 1 Fullscreen 2 Font 24/Smallcaps Map View 50x44 Zoom Use 0% Tactical HUD 1 Map Filters NONE Filters NONE Steam 1 RUN: fdd06fcd-7521-4284-9dd1-ffd2532794e5